[Event "360 One Wealth GP-4 2024"]
[Site "Mumbai"]
[Date "2024.03.11"]
[Round "1.1"]
[White "Ahaan Kataruka"]
[Black "Kulkarni, Vikramaditya"]
[Result "0-1"]
[ECO "C41"]
[WhiteElo "1427"]
[BlackElo "2192"]
[Annotator "RC"]
[PlyCount "60"]
[EventDate "2024.03.10"]
[EventCountry "IND"]
[SourceTitle "playchess.com"]
[Source "ChessBase"]
[SourceQuality "1"]
[TimeControl "5400+30"]

1. e4 {[%emt 0:00:13]} e5 {[%emt 0:00:21]} 2. Nf3 {[%emt 0:00:05]} d6 {[%emt 0:00:12]} 3. Bc4 {[%emt 0:00:39]} Bg4 {[%emt 0:03:59]} 4. d3 {[%emt 0:01:01]} Nd7 {[%emt 0:03:55]} 5. c3 {[%emt 0:02:58]} c6 {[%emt 0:01:21]} 6. Nbd2 {[%emt 0:00:33]} b5 {[%emt 0:06:38]} 7. Bb3 {[%emt 0:02:00]} Nc5 {[%emt 0:00:20]} 8. Bc2 {[%emt 0:00:42]} Ne6 {[%emt 0:00:17]} 9. Nf1 {[%emt 0:01:03]} Nf4 {[%emt 0:00:53]} 10. Bxf4 {[%emt 0:01:01]} exf4 {[%emt 0:00:04]} 11. h3 {[%emt 0:00:27]} Bh5 {[%emt 0:00:42]} 12. g4 {[%emt 0:01:56]} fxg3 {[%emt 0:01:23]} 13. Nxg3 {[%emt 0:00:09]} Nf6 {[%emt 0:01:53]} 14. Nxh5 {[%emt 0:00:27]} Nxh5 {[%emt 0:00:02]} 15. Nd4 {[%emt 0:00:01]} g6 {[%emt 0:07:06]} 16. Nxc6 {[%emt 0:02:38]} Qf6 {[%emt 0:02:13]} 17. Nd4 {[%emt 0:03:03]} Bh6 {[%emt 0:01:15]} 18. Qf3 {[%emt 0:03:11]} Qg5 {[%emt 0:04:45]} 19. Bb3 {[%emt 0:06:16]} Qd2+ {[%emt 0:05:02]} 20. Kf1 {[%emt 0:00:21]} Nf4 {[%emt 0:00:18]} 21. Bc2 {[%emt 0:02:07]} Ne6 {[%emt 0:04:52]} 22. Nxe6 {[%emt 0:11:07]} fxe6 {[%emt 0:00:02]} 23. Qf6 {[%emt 0:02:38]} Kd7 {[%emt 0:02:08]} 24. Qf7+ {[%emt 0:10:17]} Kc6 {[%emt 0:02:41]} 25. Bb3 {[%emt 0:13:52]} Rhf8 {[%emt 0:02:56]} 26. Bd5+ {[%emt 0:01:34]} exd5 {[%emt 0:00:06]} 27. Qxd5+ {[%emt 0:01:07]} Kc7 {[%emt 0:00:04]} 28. Rh2 {[%emt 0:00:14]} Be3 {[%emt 0:00:37]} 29. Qxb5 {[%emt 0:00:29]} Rxf2+ {[%emt 0:00:06]} 30. Rxf2 {[%emt 0:00:10]} Qxf2# {[%emt 0:00:02]} 0-1

[Event "360 One Wealth GP-4 2024"]
[Site "Mumbai"]
[Date "2024.03.11"]
[Round "1.2"]
[White "Iyer Arvind"]
[Black "Lakshya Agrawal"]
[Result "1-0"]
[ECO "B19"]
[WhiteElo "1897"]
[BlackElo "1418"]
[Annotator "NA RC"]
[PlyCount "103"]
[EventDate "2024.03.10"]
[EventCountry "IND"]
[SourceTitle "playchess.com"]
[Source "ChessBase"]
[SourceQuality "1"]
[TimeControl "5400+30"]

1. e4 {[%emt 0:00:03]} c6 {[%emt 1:31:00]} 2. d4 d5 {[%emt 0:00:45]} 3. Nc3 {[%emt 0:00:04]} dxe4 {[%emt 0:00:15]} 4. Nxe4 Bf5 {[%emt 0:00:30]} 5. Ng3 Bg6 {[%emt 0:01:11]} 6. Nf3 {[%emt 0:00:03]} Nd7 {[%emt 0:00:00]} 7. h4 {[%emt 0:01:15]} h6 {[%emt 0:00:57]} 8. h5 {[%emt 0:00:04]} Bh7 {[%emt 0:00:41]} 9. Bd3 {[%emt 0:00:03]} Bxd3 {[%emt 0:01:12]} 10. Qxd3 {[%emt 0:00:03]} Ngf6 {[%emt 0:01:15]} 11. Bd2 {[%emt 0:00:05]} e6 {[%emt 0:01:05]} 12. O-O-O {[%emt 0:00:22]} Qc7 {[%emt 0:01:34]} 13. Ne4 {[%emt 0:00:17]} O-O-O {[%emt 0:01:56]} 14. g3 {[%emt 0:00:02]} Nxe4 {[%emt 0:01:50]} 15. Qxe4 {[%emt 0:00:06]} Nf6 {[%emt 0:01:08] B19: Classical Caro-Kann: 4...Bf5 main line.} 16. Qd3 {[%emt 0:01:20]} Bd6 {[%emt 0:01:34]} 17. Kb1 {[%emt 0:00:49]} Rhe8 {[%emt 0:12:46]} 18. c4 {[%emt 0:03:31]} e5 {[%emt 0:04:15]} 19. c5 {[%emt 0:00:51]} e4 {[%emt 0:02:57]} 20. Qa3 $1 {[%emt 0:00:30]} ({Viel schwächer wäre} 20. cxd6 Qxd6 21. Qc3 exf3 22. Qxf3 Qd5 (22... Qxd4 23. Bxh6 Qe4+ 24. Qxe4 $16) 23. Qxd5 Rxd5 $17) 20... exf3 {[%emt 0:03:19]} 21. cxd6 {[%emt 0:00:25]} Qd7 {[%emt 0:01:43]} 22. Qxa7 {[%emt 0:00:37]} Qf5+ {[%emt 0:00:37]} 23. Ka1 {[%emt 0:00:16]} Qb5 {[%emt 0:00:40]} 24. Qc5 $2 {[%emt 0:03:24]} (24. Qa3 $14) 24... Ne4 {[%emt 0:02:49]} (24... Re2 $17 25. Qxb5 cxb5) 25. Qxb5 {[%emt 0:01:12]} cxb5 {[%emt 0:01:29]} 26. Rc1+ {[%emt 0:03:22]} Kd7 {[%emt 0:02:45]} 27. Rc7+ {[%emt 0:00:46]} Kxd6 {[%emt 0:00:10]} 28. Bf4+ {[%emt 0:00:05]} Kd5 {[%emt 0:01:13]} 29. Be3 {[%emt 0:01:01]} Nxg3 {[%emt 0:01:02]} 30. Rc5+ {[%emt 0:00:16]} Ke4 {[%emt 0:00:17]} 31. Rh4+ {[%emt 0:01:51]} Kd3 {[%emt 0:00:34]} 32. Rc3+ {[%emt 0:00:13]} Ke2 {[%emt 0:00:19]} 33. Rc2+ $1 {[%emt 0:00:07]} Kd1 $1 {[%emt 0:01:23]} ({Avoid the trap} 33... Kd3 $2 34. Rd2+ Kc4 35. d5+ Ne4 36. Bb6 (36. Rd4+ Kc5 $18) 36... Rxd5 37. b3+ Kc3 38. Rxd5 $18) 34. Kb1 {[%emt 0:00:57]} Rc8 $1 {[%emt 0:01:22]} 35. Rxc8 {[%emt 0:02:19]} Rxc8 {[%emt 0:00:11]} 36. fxg3 {[%emt 0:00:14]} f2 {[%emt 0:00:27]} 37. Rf4 {[%emt 0:00:10]} f1=Q {[%emt 0:00:27]} 38. Rxf1+ {[%emt 0:00:27]} Ke2 {[%emt 0:00:09]} 39. Rc1 {[%emt 0:00:03]} Rxc1+ {[%emt 0:00:41]} 40. Bxc1 {[%emt 0:00:08]} Kd3 {[%emt 0:00:15]} 41. d5 {[%emt 0:00:06]} Ke4 {[%emt 0:00:08]} 42. d6 {[%emt 0:00:04]} Kf3 {[%emt 0:00:03]} 43. d7 {[%emt 0:00:04]} Kxg3 {[%emt 0:00:07]} 44. d8=Q {[%emt 0:00:01]} Kh3 {[%emt 0:00:49]} 45. Qd4 {[%emt 0:00:10]} b4 {[%emt 0:00:05]} 46. Bd2 {[%emt 0:00:05]} b3 {[%emt 0:00:04]} 47. Be1 {[%emt 0:00:03]} bxa2+ {[%emt 0:00:04]} 48. Kxa2 {[%emt 0:56:36]} b5 49. Qxg7 {[%emt 0:00:20]} Kh2 {[%emt 0:00:07]} 50. Qg3+ {[%emt 0:00:06]} Kh1 {[%emt 0:00:07]} 51. Bf2 {[%emt 0:00:02]} b4 {[%emt 0:00:04]} 52. Qh3# {[%emt 0:00:04]} 1-0

[Event "360 One Wealth GP-4 2024"]
[Site "Mumbai"]
[Date "2024.03.11"]
[Round "1.3"]
[White "Yash Bharat Tandon"]
[Black "Kolumum Raja, Aravind"]
[Result "0-1"]
[ECO "B01"]
[WhiteElo "1409"]
[BlackElo "1896"]
[Annotator "NA RC"]
[PlyCount "28"]
[EventDate "2024.03.10"]
[EventCountry "IND"]
[SourceTitle "playchess.com"]
[Source "ChessBase"]
[SourceQuality "1"]
[TimeControl "5400+30"]

{[%evp 18,27,220,168,159,32767,32767,0,-25,-1,-10,-29999]} 1. e4 {[%emt 0:00:23]} d5 {[%emt 0:00:17]} 2. exd5 {[%emt 0:00:28]} Nf6 {[%emt 0:00:08]} 3. Nf3 {[%emt 0:00:37]} Qxd5 {[%emt 0:00:45]} 4. c4 {[%emt 0:00:56]} Qd6 {[%emt 0:02:37]} 5. d4 {[%emt 0:00:28]} c6 {[%emt 0:02:35]} 6. Nc3 {[%emt 0:00:34]} Bg4 {[%emt 0:01:07]} 7. Be2 {[%emt 0:02:05]} Nbd7 {[%emt 0:02:57]} 8. O-O {[%emt 0:00:51]} O-O-O {[%emt 0:02:16]} 9. Be3 {[%emt 0:00:26]} h6 {[%emt 0:03:53]} (9... e6 $142 10. c5 Qc7) 10. a3 {[%emt 0:00:21]} e5 {[%emt 0:03:28]} 11. dxe5 {[%emt 0:01:29]} Nxe5 {[%emt 0:01:39]} 12. Nd4 {[%emt 0:01:40]} ({Don't do} 12. Bxa7 $6 Qc7 13. Qb3 Nxf3+ 14. gxf3 Be6 $14) (12. Nxe5 $16 Bxe2 13. Qxd6 (13. Nxe2 Qxe5 14. Qc2 Bc5 $11) (13. Nxf7 Bxd1 14. Rfxd1 Ng4 $16) 13... Bxd6 14. Nxf7 Bxf1 (14... Bxc4 $2 15. Nxh8 Rxh8 16. Rfe1 $18) 15. Kxf1) 12... Bxe2 {[%emt 0:07:16]} 13. Qxe2 {[%emt 0:00:25]} Neg4 {[%emt 0:07:04]} 14. Rad1 $2 {[%emt 0:01:07]} (14. Nf3 $11) 14... Qxh2# {[%emt 0:00:24]} 0-1

[Event "360 One Wealth GP-4 2024"]
[Site "Mumbai"]
[Date "2024.03.11"]
[Round "1.5"]
[White "Bhava Kishan"]
[Black "Boricha Yohan"]
[Result "0-1"]
[ECO "E52"]
[WhiteElo "1407"]
[BlackElo "1840"]
[Annotator "NA RC"]
[PlyCount "108"]
[EventDate "2024.03.10"]
[EventCountry "IND"]
[SourceTitle "playchess.com"]
[Source "ChessBase"]
[SourceQuality "1"]
[TimeControl "5400+30"]

1. d4 {[%emt 0:00:19]} Nf6 {[%emt 0:00:09]} 2. c4 {[%emt 0:01:03]} e6 {[%emt 0:00:09]} 3. Nc3 {[%emt 0:01:54]} Bb4 {[%emt 0:00:07]} 4. Bd2 {[%emt 0:01:47]} O-O {[%emt 0:02:17]} 5. Nf3 {[%emt 0:00:21]} b6 {[%emt 0:03:53]} 6. e3 {[%emt 0:02:38]} Bb7 {[%emt 0:00:58]} 7. Bd3 {[%emt 0:01:07]} d5 {[%emt 0:01:29]} 8. O-O {[%emt 0:03:09]} dxc4 {[%emt 0:01:10]} 9. Bxc4 {[%emt 0:02:28]} Nbd7 {[%emt 0:05:21]} 10. Re1 {[%emt 0:04:27] E52: Nimzo-Indian: Rubinstein: 4...0-0 5 Nf3 d5 6 Bd3 b6.} Qe7 {[%emt 0:09:49]} 11. a3 {[%emt 0:04:58]} Bxc3 {[%emt 0:00:59]} 12. Bxc3 {[%emt 0:01:10]} Ne4 {[%emt 0:00:44]} 13. Bd3 {[%emt 0:08:43]} Nxc3 {[%emt 0:00:34]} 14. bxc3 {[%emt 0:00:07]} e5 {[%emt 0:00:26]} 15. e4 {[%emt 0:03:18]} exd4 {[%emt 0:03:59]} 16. cxd4 {[%emt 0:00:34]} c5 {[%emt 0:00:23]} 17. d5 {[%emt 0:02:13]} Rac8 {[%emt 0:04:58]} 18. Bc4 {[%emt 0:10:34]} Ne5 {[%emt 0:02:01]} 19. Nxe5 {[%emt 0:04:14]} Qxe5 {[%emt 0:00:03]} 20. Qc2 {[%emt 0:02:18]} Rfd8 {[%emt 0:05:28]} 21. Rad1 {[%emt 0:02:51]} Rd6 $2 {[%emt 0:02:25]} (21... Rb8 $16) 22. Qd2 {[%emt 0:03:32]} g5 {[%emt 0:03:36]} 23. Re3 {[%emt 0:04:39]} Rcd8 {[%emt 0:03:45]} 24. Rde1 {[%emt 0:04:39]} Rg6 {[%emt 0:04:42]} 25. Rf3 {[%emt 0:02:03]} Bc8 {[%emt 0:01:00]} 26. Qc3 {[%emt 0:02:22]} Re8 {[%emt 0:02:48]} 27. Qxe5 {[%emt 0:10:16]} Rxe5 {[%emt 0:00:02]} 28. Rd3 {[%emt 0:00:55]} Rd6 {[%emt 0:01:08]} 29. Kf1 {[%emt 0:00:30]} a6 {[%emt 0:02:25]} 30. a4 {[%emt 0:00:09]} Bd7 {[%emt 0:00:15]} 31. Bxa6 {[%emt 0:02:14]} Bxa4 {[%emt 0:00:11]} 32. Bc4 {[%emt 0:00:43]} b5 {[%emt 0:07:05]} 33. Ra3 {[%emt 0:00:40]} Rb6 {[%emt 0:02:42]} 34. f3 {[%emt 0:00:58]} Bc2 {[%emt 0:03:02]} 35. Rc1 {[%emt 0:00:29]} Bxe4 {[%emt 0:01:13]} 36. fxe4 {[%emt 0:00:32]} bxc4 {[%emt 0:00:53]} 37. Rxc4 {[%emt 0:00:09]} Rb4 {[%emt 0:00:37]} 38. Ra4 {[%emt 0:01:26]} Rxa4 {[%emt 0:00:37]} 39. Rxa4 {[%emt 0:00:06]} f5 {[%emt 0:00:28]} 40. d6 {[%emt 0:01:19]} Kf7 {[%emt 0:01:26]} 41. Ra7+ {[%emt 0:01:38]} Ke8 {[%emt 0:00:10]} 42. Re7+ $2 {[%emt 0:00:50]} (42. Rxh7 $11 Rxe4 43. Rc7) 42... Rxe7 {[%emt 0:00:21]} 43. dxe7 {[%emt 0:00:04]} fxe4 {[%emt 0:00:45]} 44. Ke2 {[%emt 0:00:07]} c4 {[%emt 0:00:07]} 45. Kd2 {[%emt 0:03:24]} Kxe7 {[%emt 0:00:07]} 46. g4 {[%emt 0:01:34]} Kd6 {[%emt 0:00:10]} 47. h3 {[%emt 0:00:21]} Ke5 {[%emt 0:00:10]} 48. Ke3 {[%emt 0:00:12]} c3 {[%emt 0:00:06]} 49. Ke2 {[%emt 0:00:17]} Kd4 {[%emt 0:00:09]} 50. Kd1 {[%emt 0:00:13]} e3 {[%emt 0:00:27]} 51. Ke2 {[%emt 0:00:38]} c2 {[%emt 0:00:13]} 52. Ke1 {[%emt 0:00:12]} c1=Q+ {[%emt 0:00:10]} 53. Ke2 {[%emt 0:00:08]} Qd2+ {[%emt 0:00:11]} 54. Kf1 {[%emt 0:00:03]} Qf2# {[%emt 0:00:06]} 0-1

[Event "360 One Wealth GP-4 2024"]
[Site "Mumbai"]
[Date "2024.03.12"]
[Round "2.1"]
[White "Kulkarni, Vikramaditya"]
[Black "Reyaansh Venkat"]
[Result "1-0"]
[ECO "B71"]
[WhiteElo "2192"]
[BlackElo "1546"]
[Annotator "RC"]
[PlyCount "109"]
[EventDate "2024.03.10"]
[EventCountry "IND"]
[SourceTitle "playchess.com"]
[Source "ChessBase"]
[SourceQuality "1"]
[TimeControl "5400+30"]

1. e4 {[%emt 0:00:04]} c5 {[%emt 0:00:16]} 2. Be2 {[%emt 0:00:06]} Nc6 {[%emt 0:00:17]} 3. f4 {[%emt 0:00:24]} d6 {[%emt 0:00:51]} 4. Nf3 {[%emt 0:00:14]} Nf6 {[%emt 0:01:42]} 5. Nc3 {[%emt 0:01:09]} g6 {[%emt 0:01:51]} 6. d4 {[%emt 0:01:55]} cxd4 {[%emt 0:00:44]} 7. Nxd4 {[%emt 0:00:05]} Bg7 {[%emt 0:01:11]} 8. Nxc6 {[%emt 0:02:52]} bxc6 {[%emt 0:00:05]} 9. e5 {[%emt 0:00:11]} dxe5 {[%emt 0:01:14]} 10. Qxd8+ {[%emt 0:00:02]} Kxd8 {[%emt 0:00:05]} 11. Bf3 {[%emt 0:01:37]} Bb7 {[%emt 0:08:54]} 12. fxe5 {[%emt 0:01:21]} Nd7 {[%emt 0:01:31]} 13. e6 {[%emt 0:00:17]} fxe6 {[%emt 0:01:45]} 14. Ne4 {[%emt 0:00:36]} h6 {[%emt 0:06:04]} 15. Be3 {[%emt 0:01:17]} Kc7 {[%emt 0:01:57]} 16. O-O-O {[%emt 0:00:47]} Rhd8 {[%emt 0:06:22]} 17. Bg4 {[%emt 0:10:29]} c5 {[%emt 0:10:00]} 18. Rxd7+ {[%emt 0:03:19]} Rxd7 {[%emt 0:03:28]} 19. Nxc5 {[%emt 0:00:43]} Bd5 {[%emt 0:06:55]} 20. Nxd7 {[%emt 0:05:12]} Kxd7 {[%emt 0:00:35]} 21. Rd1 {[%emt 0:00:22]} Kc7 {[%emt 0:03:49]} 22. Rd2 {[%emt 0:15:26]} h5 {[%emt 0:04:22]} 23. Bh3 {[%emt 0:00:36]} Rf8 {[%emt 0:01:19]} 24. g3 {[%emt 0:02:43]} Rf3 {[%emt 0:03:19]} 25. Bf4+ {[%emt 0:00:29]} e5 {[%emt 0:04:51]} 26. Bg5 {[%emt 0:14:42]} Bc6 {[%emt 0:04:00]} 27. Bg2 {[%emt 0:03:20]} Rf5 {[%emt 0:01:50]} 28. Be3 {[%emt 0:08:24]} a6 {[%emt 0:02:07]} 29. c4 {[%emt 0:04:32]} Bxg2 {[%emt 0:03:03]} 30. Rxg2 {[%emt 0:00:32]} Rf3 {[%emt 0:01:48]} 31. Kd2 {[%emt 0:01:30]} Kc6 {[%emt 0:02:04]} 32. Rf2 {[%emt 0:01:49]} e4 {[%emt 0:02:04]} 33. Rxf3 {[%emt 0:05:01]} exf3 {[%emt 0:00:05]} 34. b3 {[%emt 0:00:49]} Bf6 {[%emt 0:02:40]} 35. h4 {[%emt 0:03:06]} Kd6 {[%emt 0:05:57]} 36. Kd3 {[%emt 0:00:03]} e5 {[%emt 0:01:23]} 37. Ke4 {[%emt 0:00:52]} g5 {[%emt 0:00:56]} 38. hxg5 {[%emt 0:00:31]} Bxg5 {[%emt 0:00:12]} 39. Kxf3 {[%emt 0:00:40]} Bd8 {[%emt 0:01:15]} 40. Bf2 {[%emt 0:02:09]} a5 {[%emt 0:00:16]} 41. Ke4 {[%emt 0:00:09]} Ke6 {[%emt 0:00:13]} 42. Be1 {[%emt 0:01:51]} Bb6 {[%emt 0:00:09]} 43. Bc3 {[%emt 0:00:14]} Bc7 {[%emt 0:00:30]} 44. c5 {[%emt 0:00:44]} a4 {[%emt 0:00:31]} 45. b4 {[%emt 0:00:49]} Bb8 {[%emt 0:01:34]} 46. b5 {[%emt 0:00:03]} Ba7 {[%emt 0:00:02]} 47. b6 {[%emt 0:00:22]} Bb8 {[%emt 0:00:17]} 48. Bb4 {[%emt 0:01:18]} a3 {[%emt 0:00:12]} 49. c6 {[%emt 0:00:38]} Bd6 {[%emt 0:00:18]} 50. Bxd6 {[%emt 0:00:09]} Kxd6 {[%emt 0:00:10]} 51. c7 {[%emt 0:00:01]} Kd7 {[%emt 0:00:05]} 52. Kxe5 {[%emt 0:00:04]} Kc8 {[%emt 0:00:03]} 53. Kd6 {[%emt 0:00:07]} h4 {[%emt 0:00:29]} 54. Kc6 {[%emt 0:00:05]} hxg3 {[%emt 0:00:06]} 55. b7# {[%emt 0:00:03]} 1-0

[Event "360 One Wealth GP-4 2024"]
[Site "Mumbai"]
[Date "2024.03.12"]
[Round "2.2"]
[White "Agraval, Shravana"]
[Black "Iyer Arvind"]
[Result "0-1"]
[ECO "D02"]
[WhiteElo "1540"]
[BlackElo "1897"]
[Annotator "NA RC"]
[PlyCount "144"]
[EventDate "2024.03.10"]
[EventCountry "IND"]
[SourceTitle "playchess.com"]
[Source "ChessBase"]
[SourceQuality "1"]
[TimeControl "5400+30"]

1. d4 {[%emt 0:00:06]} Nf6 {[%emt 0:11:22]} 2. Bf4 {[%emt 0:00:00]} e6 {[%emt 0:00:05]} 3. Nf3 {[%emt 0:00:00]} d5 {[%emt 0:00:04]} 4. e3 {[%emt 0:00:00]} Ne4 {[%emt 0:00:03]} 5. Nbd2 {[%emt 0:00:15]} Nxd2 {[%emt 0:00:23]} 6. Qxd2 {[%emt 0:00:06] D02: 1 d4 d5 2 Nf3 sidelines, including 2...Nf6 3 g3 and 2...Nf6 3 Bf4.} Bd6 {[%emt 0:00:07]} 7. Bg3 {[%emt 0:00:21]} b6 {[%emt 0:00:05]} 8. Bd3 {[%emt 0:00:11]} Bb7 {[%emt 0:00:05]} 9. c3 {[%emt 0:00:18]} Qe7 {[%emt 0:00:12]} 10. Qe2 {[%emt 0:01:25]} Nd7 {[%emt 0:00:53]} 11. O-O {[%emt 0:00:55]} O-O {[%emt 0:01:35]} 12. e4 {[%emt 0:12:12]} dxe4 {[%emt 0:00:05]} 13. Bxe4 {[%emt 0:00:06]} Bxe4 {[%emt 0:00:04]} 14. Qxe4 {[%emt 0:00:05]} f5 {[%emt 0:00:08]} 15. Bxd6 {[%emt 0:00:47]} cxd6 {[%emt 0:00:11]} 16. Qe2 {[%emt 0:00:33]} Rae8 {[%emt 0:00:32]} 17. Rfe1 {[%emt 0:00:29]} e5 {[%emt 0:00:52]} 18. dxe5 {[%emt 0:00:30]} dxe5 {[%emt 0:00:06]} 19. Rad1 {[%emt 0:00:27]} e4 {[%emt 0:01:02]} 20. Nd4 {[%emt 0:00:34]} Nc5 {[%emt 0:00:16]} 21. Qc4+ {[%emt 0:01:48]} Kh8 {[%emt 0:01:37]} 22. b4 {[%emt 0:01:11]} Nb7 {[%emt 0:29:01]} 23. Qd5 {[%emt 0:20:35]} Qf7 {[%emt 0:19:02]} 24. Nb5 {[%emt 0:13:19]} h6 {[%emt 0:13:05]} ({Vorzuziehen ist} 24... a6 $14 25. Qxf7 Rxf7) 25. Qb3 {[%emt 0:20:10]} (25. Qxf7 $16 Rxf7 26. Nxa7) 25... Qg6 {[%emt 0:06:40]} 26. Rd7 {[%emt 0:03:53]} Qc6 {[%emt 0:00:34]} 27. Qd5 {[%emt 0:00:34]} Qxd5 {[%emt 0:01:09]} 28. Rxd5 {[%emt 0:00:12]} a6 {[%emt 0:02:11]} 29. Rd7 {[%emt 0:02:04]} axb5 {[%emt 0:00:12]} 30. Rxb7 {[%emt 0:00:09]} Rb8 {[%emt 0:00:32]} 31. Rxb8 {[%emt 0:00:21]} Rxb8 {[%emt 0:00:04]} 32. f3 {[%emt 0:00:18]} Re8 {[%emt 0:01:27]} 33. fxe4 {[%emt 0:00:07]} fxe4 {[%emt 0:00:04]} 34. Kf2 {[%emt 0:00:02]} Kh7 {[%emt 0:00:13]} 35. Ke3 {[%emt 0:00:18]} Kg6 {[%emt 0:00:16]} 36. Rd1 {[%emt 0:00:26]} Kf5 {[%emt 0:00:45]} 37. Rd5+ {[%emt 0:00:38]} Re5 {[%emt 0:00:07]} 38. Rd6 {[%emt 0:00:07]} h5 {[%emt 0:00:19]} 39. Rxb6 {[%emt 0:00:10]} Rd5 {[%emt 0:00:03]} 40. Rc6 {[%emt 0:00:24]} Rd3+ {[%emt 0:00:05]} 41. Ke2 {[%emt 0:00:05]} h4 {[%emt 0:00:19]} 42. Rc8 {[%emt 0:01:58]} g5 {[%emt 0:00:20]} 43. Rc7 {[%emt 0:00:58]} Kf4 {[%emt 0:00:23]} 44. Rf7+ {[%emt 0:00:12]} Kg4 {[%emt 0:00:08]} 45. Rc7 {[%emt 0:00:26]} h3 {[%emt 0:03:12]} 46. g3 {[%emt 0:02:27]} Rf3 $11 {[%emt 0:00:46]} 47. Re7 {[%emt 0:01:39]} Rxc3 {[%emt 0:01:07]} 48. Rxe4+ {[%emt 0:00:06]} Kf5 {[%emt 0:00:34]} 49. Rd4 {[%emt 0:00:13]} Ke5 {[%emt 0:01:38]} 50. Rd3 {[%emt 0:00:40]} Rc2+ {[%emt 0:00:12]} 51. Rd2 {[%emt 0:00:05]} Rc1 {[%emt 0:00:04]} 52. Kf3 {[%emt 0:00:17]} Rc4 {[%emt 0:00:22]} 53. a3 {[%emt 0:00:40]} g4+ {[%emt 0:00:27]} 54. Ke3 {[%emt 0:00:10]} Rc3+ {[%emt 0:00:14]} 55. Rd3 {[%emt 0:00:05]} Rc1 {[%emt 0:00:05]} 56. Rd2 {[%emt 0:01:01]} Ra1 {[%emt 0:01:19]} 57. Rd3 {[%emt 0:00:44]} Ra2 {[%emt 0:00:13]} 58. Rd2 {[%emt 0:00:07]} Rxa3+ {[%emt 0:00:06]} 59. Rd3 {[%emt 0:00:12]} Rxd3+ {[%emt 0:01:34]} 60. Kxd3 {[%emt 0:00:05]} Kd5 {[%emt 0:00:02]} 61. Ke3 {[%emt 0:00:18]} Kc4 {[%emt 0:00:03]} 62. Kf4 {[%emt 0:00:05]} Kxb4 {[%emt 0:00:03]} 63. Kxg4 {[%emt 0:00:05]} Kc3 {[%emt 0:00:15]} 64. Kxh3 {[%emt 0:00:03]} b4 {[%emt 0:00:05]} 65. g4 {[%emt 0:00:03]} b3 {[%emt 0:00:02]} 66. g5 {[%emt 0:00:06]} b2 {[%emt 0:00:04]} 67. Kg4 {[%emt 0:00:11]} b1=Q {[%emt 0:00:05]} 68. h4 {[%emt 0:00:05]} Kd4 {[%emt 0:00:13]} 69. h5 {[%emt 0:00:05]} Qe4+ {[%emt 0:00:05]} 70. Kh3 {[%emt 0:00:08]} Qf3+ {[%emt 0:00:03]} 71. Kh4 {[%emt 0:00:07]} Qf4+ {[%emt 0:00:03]} 72. Kh3 {[%emt 0:00:08]} Qxg5 {[%emt 0:00:05]} 0-1

[Event "360 One Wealth GP-4 2024"]
[Site "Mumbai"]
[Date "2024.03.12"]
[Round "2.3"]
[White "Kolumum Raja, Aravind"]
[Black "Muthe Dhruv"]
[Result "0-1"]
[ECO "E90"]
[WhiteElo "1896"]
[BlackElo "1539"]
[Annotator "NA RC"]
[PlyCount "70"]
[EventDate "2024.03.10"]
[EventCountry "IND"]
[SourceTitle "playchess.com"]
[Source "ChessBase"]
[SourceQuality "1"]
[TimeControl "5400+30"]

{[%evp 9,70,43,32767,32767,36,23,29,32767,44,32767,32767,32767,41,-58,-36,-74,-61,-133,-146,-272,-255,-262,-271,32767,-291,-324,-318,-308,-313,32767,-298,-285,-214,-365,-255,32767,32767,-269,-234,32767,-283,-460,-478,32767,-487,32767,32767,32767,32767,32767,-494,-610,-535,32767,32767,-481,32767,32767,32767,-618,-616,32767,-1485]} 1. d4 {[%emt 0:00:08]} Nf6 {[%emt 0:00:06]} 2. c4 {[%emt 0:00:30]} g6 {[%emt 0:00:08]} 3. Nc3 {[%emt 0:00:50]} Bg7 {[%emt 0:00:12]} 4. e4 {[%emt 0:00:10]} d6 {[%emt 0:00:04]} 5. h3 {[%emt 0:00:16]} O-O {[%emt 0:02:13]} 6. Nf3 {[%emt 0:00:36]} Na6 {[%emt 0:02:41]} 7. Be3 {[%emt 0:01:52]} e5 {[%emt 0:04:22]} 8. d5 {[%emt 0:02:26]} b6 {[%emt 0:03:43] E90: Königsindisch (Klassisches System).} 9. a3 {[%emt 0:03:36]} Nc5 {[%emt 0:00:14]} 10. Qc2 {[%emt 0:00:58]} a5 {[%emt 0:02:03]} (10... Nh5 $5) 11. a4 {[%emt 0:01:37]} (11. g4 $1 $14) 11... Nfd7 {[%emt 0:02:05]} 12. g4 {[%emt 0:06:53]} (12. h4 $11) 12... Na6 {[%emt 0:01:20]} 13. Na2 {[%emt 0:05:06]} (13. O-O-O $15) 13... Ndc5 {[%emt 0:00:35]} 14. Bd2 {[%emt 0:04:05]} (14. Nd2 $17) 14... f5 {[%emt 0:00:42]} 15. gxf5 {[%emt 0:05:11]} gxf5 {[%emt 0:08:18]} 16. Bg5 {[%emt 0:08:29]} Qe8 {[%emt 0:05:58]} 17. Nd2 {[%emt 0:02:27]} fxe4 {[%emt 0:03:56]} ({Bloß nicht} 17... Qxa4 18. Qxa4 Nxa4 19. b3 $19) 18. Be3 {[%emt 0:01:04]} Bf5 {[%emt 0:15:13]} ({Jedoch nicht} 18... Qxa4 19. Qxa4 Nxa4 20. O-O-O $19) 19. Rg1 {[%emt 0:02:20]} Kh8 {[%emt 0:00:00]} ({Don't do} 19... Nxa4 20. Bg2 N4c5 (20... N6c5 $2 21. Kf1 $17) 21. Bxe4 Nxe4 (21... Bxh3 $2 {is the wrong capture.} 22. Bxh7+ Kh8 23. Bg6 $18) 22. Nxe4 $19) 20. O-O-O {[%emt 0:22:10]} Qxa4 {[%emt 0:00:00]} 21. b3 $2 {[%emt 0:02:46]} (21. Qxa4 Nxa4 22. Rg5) 21... Qa3+ {[%emt 0:00:00]} 22. Qb2 {[%emt 0:05:18]} Qxb2+ {[%emt 0:00:00]} 23. Kxb2 {[%emt 0:00:09]} Nd3+ {[%emt 0:00:00]} 24. Kc3 {[%emt 0:01:27]} Nab4 {[%emt 0:00:00]} 25. Nc1 $2 {[%emt 0:01:56]} (25. Bxd3 Nxd3 (25... Nxa2+ $2 26. Kb2 $17) 26. Kc2) 25... Nxc1 {[%emt 0:00:00]} 26. Rxc1 {[%emt 0:05:13]} Na2+ {[%emt 0:00:00]} 27. Kb2 {[%emt 0:00:29]} Nxc1 {[%emt 0:00:00]} 28. Kxc1 {[%emt 0:00:04]} a4 {[%emt 0:00:00]} 29. b4 {[%emt 0:01:35]} a3 {[%emt 0:00:00]} 30. Bg2 {[%emt 0:01:31]} Ra4 {[%emt 0:00:00]} 31. b5 {[%emt 0:02:45]} a2 {[%emt 0:00:00]} 32. Kb2 {[%emt 0:01:02]} Bf6 {[%emt 0:00:00]} 33. Bxe4 {[%emt 0:04:13]} Bxe4 {[%emt 0:00:00]} 34. Nxe4 {[%emt 0:02:27]} Bg7 {[%emt 0:01:52]} 35. Ng5 {[%emt 0:00:24]} e4+ $19 {[%emt 0:01:52]} 0-1